bitfinex/quotes_BTCUSD_20260101
["timestamp","ask_amount","ask_price","bid_price","bid_amount"]
[1767247406150,0.01069619,87702.0,87694.0,0.04649133]
[1767247406533,0.02464257,87709.0,87694.0,0.04649133]
[1767247406678,0.01069639,87708.0,87694.0,0.04649133]
[1767247407000,0.01069639,87707.0,87694.0,0.04649133]
[1767247407207,0.01069639,87706.0,87694.0,0.04649133]
[1767247407501,0.01069639,87705.0,87694.0,0.04649133]
[1767247407703,0.01069639,87704.0,87694.0,0.04649133]
[1767247407869,0.01069639,87703.0,87694.0,0.04649133]
[1767247408082,0.02464257,87709.0,87694.0,0.04649133]
[1767247408083,0.01069639,87702.0,87694.0,0.04649133]
[1767247408261,0.02464257,87709.0,87694.0,0.04649133]
[1767247408471,0.0106968,87708.0,87694.0,0.04649133]
[1767247408668,0.0106968,87707.0,87694.0,0.04649133]
[1767247408914,0.0106968,87706.0,87694.0,0.04649133]
[1767247409091,0.0106968,87705.0,87694.0,0.04649133]
[1767247409291,0.0106968,87704.0,87694.0,0.04649133]
[1767247409497,0.0106968,87703.0,87694.0,0.04649133]
[1767247409831,0.0106968,87702.0,87694.0,0.04649133]
[1767247409977,0.02464257,87709.0,87694.0,0.04649133]
[1767247410179,0.01069706,87708.0,87694.0,0.04649133]
[1767247410374,0.01069706,87707.0,87694.0,0.04649133]
[1767247410624,0.01069706,87706.0,87694.0,0.04649133]
[1767247410838,0.01069706,87705.0,87694.0,0.04649133]
[1767247411142,0.01069706,87704.0,87694.0,0.04649133]
[1767247411434,0.02464257,87709.0,87694.0,0.04649133]
[1767247411435,0.01069706,87703.0,87694.0,0.04649133]
[1767247411632,0.01069706,87702.0,87694.0,0.04649133]
[1767247411909,0.02464257,87709.0,87694.0,0.04649133]
[1767247412211,0.01069741,87708.0,87694.0,0.04649133]
[1767247412506,0.01069741,87707.0,87694.0,0.04649133]
[1767247412713,0.02464257,87709.0,87694.0,0.04649133]
[1767247412714,0.01069741,87706.0,87694.0,0.04649133]
[1767247412854,0.01069741,87705.0,87694.0,0.04649133]
[1767247413055,0.01069741,87704.0,87694.0,0.04649133]
[1767247413297,0.01069741,87703.0,87694.0,0.04649133]
[1767247413470,0.01069741,87702.0,87694.0,0.04649133]
[1767247413682,0.02464257,87709.0,87694.0,0.04649133]
[1767247413855,0.01069839,87708.0,87694.0,0.04649133]
[1767247414055,0.01069839,87707.0,87694.0,0.04649133]
[1767247414310,0.01069839,87706.0,87694.0,0.04649133]
[1767247414510,0.01069839,87705.0,87694.0,0.04649133]
[1767247414657,0.01069839,87704.0,87694.0,0.04649133]
[1767247414859,0.01069839,87703.0,87694.0,0.04649133]
[1767247415081,0.01069839,87702.0,87694.0,0.04649133]
[1767247415281,0.01069839,87701.0,87694.0,0.04649133]
[1767247415454,0.02464257,87707.0,87694.0,0.04649133]
[1767247415657,0.03534217,87706.0,87694.0,0.04649133]
[1767247415861,0.03534217,87705.0,87694.0,0.04649133]
[1767247416078,0.03534217,87704.0,87694.0,0.04649133]
[1767247416279,0.0106996,87703.0,87694.0,0.04649133]
[1767247416474,0.01139808,87734.0,87694.0,0.04649133]
[1767247416475,0.00114699,87702.0,87694.0,0.04834294]
[1767247416704,0.01144,87710.0,87696.0,0.04834294]
[1767247416899,0.01144,87710.0,87700.0,0.51577739]
[1767247417970,0.01144,87710.0,87700.0,0.56412033]
[1767247421242,0.52721739,87710.0,87700.0,0.04779394]
[1767247421557,0.52721739,87710.0,87698.0,0.01144]
[1767247422650,0.01144,87710.0,87698.0,0.01144]
[1767247424571,0.0115235,87710.0,87698.0,0.01144]
[1767247425222,0.0115235,87710.0,87698.0,0.05978294]
[1767247445129,0.0115235,87710.0,87698.0,0.0711857]
[1767247445335,0.0115235,87710.0,87698.0,0.05978294]
[1767247446170,0.0106988,87709.0,87698.0,0.05978294]
[1767247446379,0.0115235,87710.0,87698.0,0.05978294]
[1767247446584,0.01069879,87709.0,87698.0,0.05978294]
[1767247446736,0.0115235,87710.0,87698.0,0.05978294]
[1767247447099,0.01069879,87709.0,87698.0,0.05978294]
[1767247447231,0.0115235,87710.0,87698.0,0.05978294]
[1767247447435,0.01069878,87709.0,87698.0,0.05978294]
[1767247447629,8.35e-05,87709.0,87698.0,0.05978294]
[1767247450472,8.35e-05,87709.0,87701.0,0.01140237]
[1767247450678,5e-07,87709.0,87701.0,0.05982247]
[1767247451265,5e-07,87709.0,87701.0,0.0484201]
[1767247463781,5e-07,87709.0,87701.0,0.05982247]
[1767247463978,5e-07,87709.0,87701.0,0.0484201]
[1767247465985,5e-07,87709.0,87700.0,0.0114025]
[1767247468780,5e-07,87709.0,87701.0,0.01140237]
[1767247469200,5e-07,87709.0,87700.0,0.0114025]
[1767247469582,5e-07,87709.0,87701.0,0.01140237]
[1767247469863,5e-07,87709.0,87700.0,0.0114025]
[1767247474545,5e-07,87709.0,87699.0,0.01160263]
[1767247474890,5e-07,87709.0,87699.0,0.0002]
[1767247475130,5e-07,87709.0,87699.0,0.01160263]
[1767247475536,5e-07,87709.0,87699.0,0.0002]
[1767247475737,5e-07,87709.0,87699.0,0.01160263]
[1767247477874,5e-07,87709.0,87699.0,0.0002]
[1767247478377,5e-07,87709.0,87699.0,0.01160263]
[1767247479147,5e-07,87709.0,87699.0,0.0002]
[1767247481104,5e-07,87709.0,87699.0,0.01160263]
[1767247481405,5e-07,87709.0,87699.0,0.0002]
[1767247481748,5e-07,87709.0,87699.0,0.01160263]
[1767247482598,5e-07,87709.0,87699.0,0.52746841]
[1767247484973,0.0002276,87709.0,87699.0,0.52746841]
[1767247485704,0.0002276,87709.0,87699.0,0.000117]
[1767247486307,0.0002276,87709.0,87699.0,0.51598278]
[1767247488754,0.0002276,87709.0,87699.0,0.000117]
[1767247500821,0.0002276,87709.0,87699.0,0.51598278]
[1767247501970,0.0002276,87709.0,87699.0,0.000117]
[1767247502700,0.0480815,87708.0,87699.0,0.000117]
[1767247503263,0.0483091,87708.0,87699.0,0.000117]
[1767247548903,0.0002276,87708.0,87699.0,0.000117]
[1767247568419,0.01070288,87707.0,87699.0,0.000117]
[1767247568728,0.0002276,87708.0,87699.0,0.000117]
[1767247568910,0.01070287,87707.0,87699.0,0.000117]
[1767247569133,0.0002276,87708.0,87699.0,0.000117]
[1767247569339,0.01070256,87707.0,87699.0,0.000117]
[1767247569559,0.0002276,87708.0,87699.0,0.000117]
[1767247569738,0.01070257,87707.0,87699.0,0.000117]
[1767247569934,0.0002276,87708.0,87699.0,0.000117]
[1767247570259,0.01070257,87707.0,87699.0,0.000117]
[1767247570601,0.0002276,87708.0,87699.0,0.000117]
[1767247570809,0.01070235,87707.0,87699.0,0.000117]
[1767247570983,0.0002276,87708.0,87699.0,0.000117]
[1767247571293,0.01070235,87707.0,87699.0,0.000117]
[1767247571421,0.0002276,87708.0,87699.0,0.000117]
[1767247571620,0.01070216,87707.0,87699.0,0.000117]
[1767247571849,0.0002276,87708.0,87699.0,0.000117]
[1767247572089,0.01070216,87707.0,87699.0,0.000117]
[1767247572244,0.0002276,87708.0,87699.0,0.000117]
[1767247572447,0.01070194,87707.0,87699.0,0.000117]
[1767247572634,0.0002276,87708.0,87699.0,0.000117]
[1767247572836,0.01070194,87707.0,87699.0,0.000117]
[1767247573079,0.0002276,87708.0,87699.0,0.000117]
[1767247573334,0.01070192,87707.0,87699.0,0.000117]
[1767247573534,0.0002276,87708.0,87699.0,0.000117]
[1767247573733,0.01070175,87707.0,87699.0,0.000117]
[1767247573932,0.0002276,87708.0,87699.0,0.000117]
[1767247574167,0.01070175,87707.0,87699.0,0.000117]
[1767247574377,0.0002276,87708.0,87699.0,0.000117]
[1767247574581,0.01070156,87707.0,87699.0,0.000117]
[1767247574780,0.0002276,87708.0,87699.0,0.000117]
[1767247574997,0.01070163,87707.0,87699.0,0.000117]
[1767247575150,0.0002276,87708.0,87699.0,0.000117]
[1767247575353,0.01070146,87707.0,87699.0,0.000117]
[1767247575607,0.0002276,87708.0,87699.0,0.000117]
[1767247575830,0.01070142,87707.0,87699.0,0.000117]
[1767247575950,0.0002276,87708.0,87699.0,0.000117]
[1767247576152,0.01070142,87707.0,87699.0,0.000117]
[1767247576357,0.0002276,87708.0,87699.0,0.000117]
[1767247576585,0.01070127,87707.0,87699.0,0.000117]
[1767247576784,0.0002276,87708.0,87699.0,0.000117]
[1767247576985,0.01070127,87707.0,87699.0,0.000117]
[1767247577186,0.0002276,87708.0,87699.0,0.000117]
[1767247577385,0.01070098,87707.0,87699.0,0.000117]
[1767247577585,0.0002276,87708.0,87699.0,0.000117]
[1767247577789,0.01070098,87707.0,87699.0,0.000117]
[1767247578029,0.0002276,87708.0,87699.0,0.000117]
[1767247578226,0.01070096,87707.0,87699.0,0.000117]
[1767247578368,0.0002276,87708.0,87699.0,0.000117]
[1767247578573,0.01070086,87707.0,87699.0,0.000117]
[1767247578773,0.0002276,87708.0,87699.0,0.000117]
[1767247578970,0.01070086,87707.0,87699.0,0.000117]
[1767247579185,0.0002276,87708.0,87699.0,0.000117]
[1767247579386,0.01070077,87707.0,87699.0,0.000117]
[1767247579602,0.0002276,87708.0,87699.0,0.000117]
[1767247579855,0.01070077,87707.0,87699.0,0.000117]
[1767247580019,0.0002276,87708.0,87699.0,0.000117]
[1767247580227,0.01070075,87707.0,87699.0,0.000117]
[1767247580472,0.0002276,87708.0,87699.0,0.000117]
[1767247580664,0.01070069,87707.0,87699.0,0.000117]
[1767247580820,0.0002276,87708.0,87699.0,0.000117]
[1767247581019,0.01070069,87707.0,87699.0,0.000117]
[1767247581233,0.04540733,87707.0,87699.0,0.000117]
[1767247592252,0.0002276,87708.0,87699.0,0.000117]
[1767247592470,0.01070103,87707.0,87699.0,0.000117]
[1767247592635,0.0002276,87708.0,87699.0,0.000117]
[1767247592832,0.01070103,87707.0,87699.0,0.000117]
[1767247593038,0.0002276,87708.0,87699.0,0.000117]
[1767247593255,0.01070103,87707.0,87699.0,0.000117]
[1767247593597,0.0002276,87708.0,87699.0,0.000117]
[1767247593805,0.0107012,87707.0,87699.0,0.000117]
[1767247594103,0.0002276,87708.0,87699.0,0.000117]
[1767247594218,0.01070137,87707.0,87699.0,0.000117]
[1767247594427,0.0002276,87708.0,87699.0,0.000117]
[1767247594679,0.01070137,87707.0,87699.0,0.000117]
[1767247594877,0.0002276,87708.0,87699.0,0.000117]
[1767247595079,0.01070144,87707.0,87699.0,0.000117]
[1767247595280,0.0002276,87708.0,87699.0,0.000117]
[1767247595456,0.01070165,87707.0,87699.0,0.000117]
[1767247595658,0.0002276,87708.0,87699.0,0.000117]
[1767247595858,0.01070166,87707.0,87699.0,0.000117]
[1767247596056,0.0002276,87708.0,87699.0,0.000117]
[1767247596260,0.01070166,87707.0,87699.0,0.000117]
[1767247596481,0.0002276,87708.0,87699.0,0.000117]
[1767247596700,0.01070194,87707.0,87699.0,0.000117]
[1767247596888,0.0002276,87708.0,87699.0,0.000117]
[1767247597085,0.01070194,87707.0,87699.0,0.000117]
[1767247597295,0.0002276,87708.0,87699.0,0.000117]
[1767247597469,0.01070231,87707.0,87699.0,0.000117]
[1767247597665,0.0002276,87708.0,87699.0,0.000117]
[1767247597870,0.01070231,87707.0,87699.0,0.000117]
[1767247598072,0.0002276,87708.0,87699.0,0.000117]
[1767247598283,0.01070231,87707.0,87699.0,0.000117]
[1767247598481,0.0002276,87708.0,87699.0,0.000117]
[1767247598721,0.01070254,87707.0,87699.0,0.000117]
[1767247598902,0.0002276,87708.0,87699.0,0.000117]
[1767247599107,0.01070253,87707.0,87699.0,0.000117]
[1767247599308,0.0002276,87708.0,87699.0,0.000117]
[1767247599540,0.01070264,87707.0,87699.0,0.000117]
[1767247599847,0.0002276,87708.0,87699.0,0.000117]
[1767247600039,0.01070265,87707.0,87699.0,0.000117]
[1767247600248,0.0002276,87708.0,87699.0,0.000117]
[1767247600505,0.01070277,87707.0,87699.0,0.000117]
[1767247600720,0.0002276,87708.0,87699.0,0.000117]
[1767247600915,0.01070278,87707.0,87699.0,0.000117]
[1767247601123,0.01070278,87706.0,87699.0,0.000117]
[1767247601276,0.0002276,87708.0,87699.0,0.000117]
[1767247601651,0.01070288,87707.0,87699.0,0.000117]
[1767247601758,0.01070288,87706.0,87699.0,0.000117]
[1767247601975,0.0002276,87708.0,87699.0,0.000117]
[1767247602165,0.01070287,87707.0,87699.0,0.000117]
[1767247602367,0.01070287,87706.0,87699.0,0.000117]
[1767247602568,0.0002276,87708.0,87699.0,0.000117]
[1767247602827,0.01070293,87707.0,87699.0,0.000117]
[1767247602974,0.01070293,87706.0,87699.0,0.000117]
[1767247603178,0.0002276,87708.0,87699.0,0.000117]
[1767247603373,0.01070298,87707.0,87699.0,0.000117]
[1767247603691,0.01070298,87706.0,87699.0,0.000117]
[1767247603926,0.0002276,87708.0,87699.0,0.000117]
[1767247604086,0.01070298,87707.0,87699.0,0.000117]
[1767247604277,0.01070298,87706.0,87699.0,0.000117]
[1767247604488,0.0002276,87708.0,87699.0,0.000117]
[1767247604690,0.01070297,87707.0,87699.0,0.000117]
[1767247604893,0.01070297,87706.0,87699.0,0.000117]
[1767247605094,0.0002276,87708.0,87699.0,0.000117]
[1767247605479,0.01070297,87707.0,87699.0,0.000117]
[1767247605656,0.01070297,87706.0,87699.0,0.000117]
[1767247605866,0.0002276,87708.0,87699.0,0.000117]
[1767247606068,0.01070297,87707.0,87699.0,0.000117]
[1767247606264,0.01070297,87706.0,87699.0,0.000117]
[1767247606420,0.0002276,87708.0,87699.0,0.000117]
[1767247606625,0.01070295,87707.0,87699.0,0.000117]
[1767247606841,0.01070295,87706.0,87699.0,0.000117]
[1767247607047,0.0002276,87708.0,87699.0,0.000117]
[1767247607266,0.01070296,87707.0,87699.0,0.000117]
[1767247607466,0.01070296,87706.0,87699.0,0.000117]
[1767247607670,0.0002276,87708.0,87699.0,0.000117]
[1767247607849,0.01070294,87707.0,87699.0,0.000117]
[1767247608100,0.01070294,87706.0,87699.0,0.000117]
[1767247608484,0.0002276,87708.0,87699.0,0.000117]
[1767247608640,0.01070292,87707.0,87699.0,0.000117]
[1767247608857,0.01070292,87706.0,87699.0,0.000117]
[1767247609026,0.0002276,87708.0,87699.0,0.000117]
[1767247609357,0.0107029,87707.0,87699.0,0.000117]
[1767247609544,0.0107029,87706.0,87699.0,0.000117]
[1767247609740,0.0002276,87708.0,87699.0,0.000117]
[1767247609944,0.01070242,87707.0,87699.0,0.000117]
[1767247610271,0.01070242,87706.0,87699.0,0.000117]
[1767247610440,0.0002276,87708.0,87699.0,0.000117]
[1767247610644,0.01070231,87707.0,87699.0,0.000117]
[1767247610845,0.01070231,87706.0,87699.0,0.000117]
[1767247611071,0.0002276,87708.0,87699.0,0.000117]
[1767247611284,0.01070231,87707.0,87699.0,0.000117]
[1767247611453,0.01070231,87706.0,87699.0,0.000117]
[1767247611638,0.0002276,87708.0,87699.0,0.000117]
[1767247611848,0.01070222,87707.0,87699.0,0.000117]
[1767247612066,0.01070222,87706.0,87699.0,0.000117]
[1767247612257,0.0002276,87708.0,87699.0,0.000117]
[1767247612592,0.01070214,87707.0,87699.0,0.000117]
[1767247612745,0.01070214,87706.0,87699.0,0.000117]
[1767247612950,0.0002276,87708.0,87699.0,0.000117]
[1767247613151,0.01070211,87707.0,87699.0,0.000117]
[1767247613383,0.01070211,87706.0,87699.0,0.000117]
[1767247613592,0.0002276,87708.0,87699.0,0.000117]
[1767247613746,0.01070197,87707.0,87699.0,0.000117]
[1767247614089,0.01070197,87706.0,87699.0,0.000117]
[1767247614292,0.0002276,87708.0,87699.0,0.000117]
[1767247614498,0.01070184,87707.0,87699.0,0.000117]
[1767247614640,0.01070184,87706.0,87699.0,0.000117]
[1767247614845,0.0002276,87708.0,87699.0,0.000117]
[1767247615044,0.01070184,87707.0,87699.0,0.000117]
[1767247615288,0.01070184,87706.0,87699.0,0.000117]
[1767247615498,0.0002276,87708.0,87699.0,0.000117]
[1767247615705,0.01070174,87707.0,87699.0,0.000117]
[1767247615888,0.01070174,87706.0,87699.0,0.000117]
[1767247616093,0.0002276,87708.0,87699.0,0.000117]
[1767247616295,0.01070168,87707.0,87699.0,0.000117]
[1767247616494,0.01070168,87706.0,87699.0,0.000117]
[1767247616690,0.0002276,87708.0,87699.0,0.000117]
[1767247616894,0.01070166,87707.0,87699.0,0.000117]
[1767247617097,0.01070166,87706.0,87699.0,0.000117]
[1767247617301,0.0002276,87708.0,87699.0,0.000117]
[1767247617497,0.01070159,87707.0,87699.0,0.000117]
[1767247617722,0.01070159,87706.0,87699.0,0.000117]
[1767247617878,0.0002276,87708.0,87699.0,0.000117]
[1767247618096,0.01070159,87707.0,87699.0,0.000117]
[1767247618288,0.01070159,87706.0,87699.0,0.000117]
[1767247618473,0.0002276,87708.0,87699.0,0.000117]
[1767247618671,0.01070153,87707.0,87699.0,0.000117]
[1767247619031,0.01070153,87706.0,87699.0,0.000117]
[1767247619229,0.0002276,87708.0,87699.0,0.000117]
[1767247619440,0.01070149,87707.0,87699.0,0.000117]
[1767247619648,0.01070149,87706.0,87699.0,0.000117]
[1767247619801,0.0002276,87708.0,87699.0,0.000117]
[1767247620000,0.01070149,87707.0,87699.0,0.000117]
[1767247620202,0.01070149,87706.0,87699.0,0.000117]
[1767247620398,0.0002276,87708.0,87699.0,0.000117]
[1767247620628,0.01070148,87707.0,87699.0,0.000117]
[1767247620838,0.01070148,87706.0,87699.0,0.000117]
[1767247621040,0.0002276,87708.0,87699.0,0.000117]
[1767247621360,0.01070149,87707.0,87699.0,0.000117]
[1767247621563,0.01070149,87706.0,87699.0,0.000117]
[1767247621685,0.0002276,87708.0,87699.0,0.000117]
[1767247621889,0.05733924,87707.0,87691.0,0.01144]
[1767247622192,0.51601844,87701.0,87691.0,0.01144]
[1767247622634,0.51601844,87701.0,87688.0,0.00035363]
[1767247622833,0.51601844,87698.0,87688.0,0.00035363]
[1767247623058,0.51601844,87700.0,87688.0,0.00035363]
[1767247623251,0.51610014,87700.0,87688.0,0.00035363]
[1767247623638,0.51601844,87698.0,87688.0,0.00035363]
[1767247624421,0.51610014,87700.0,87688.0,0.00035363]
[1767247628687,8.17e-05,87700.0,87688.0,0.00035363]
[1767247628911,0.51610014,87700.0,87688.0,0.00035363]
[1767247632710,0.51601844,87698.0,87688.0,0.00035363]
[1767247633116,0.51610014,87700.0,87688.0,0.00035363]
[1767247635703,0.46546944,87700.0,87689.0,0.04328048]
[1767247635868,0.46546944,87700.0,87688.0,0.00035363]
[1767247635869,0.43362896,87700.0,87688.0,0.00035363]
[1767247637943,0.01144,87700.0,87688.0,0.00035363]
[1767247639606,0.01144,87700.0,87690.0,0.51601844]
[1767247641378,0.01144,87700.0,87688.0,0.00035363]
[1767247641916,0.01144,87700.0,87690.0,0.51601844]
[1767247642331,0.01144,87700.0,87688.0,0.00035363]
[1767247643847,0.52745844,87700.0,87688.0,0.00035363]
[1767247647785,0.57581086,87700.0,87688.0,0.00035363]
[1767247652674,0.04835242,87699.0,87688.0,0.00035363]
[1767247653637,0.04835242,87699.0,87688.0,0.01179363]
[1767247655579,0.04835242,87699.0,87686.0,0.01144]
[1767247655716,0.000549,87688.0,87686.0,0.01151251]
[1767247655918,0.04835242,87695.0,87686.0,0.01151251]
[1767247662718,0.04835242,87695.0,87686.0,0.01096351]
[1767247668436,0.04835242,87695.0,87678.0,0.0001459]
[1767247668643,0.04835242,87695.0,87679.0,0.01144]
[1767247668644,0.04835242,87689.0,87679.0,0.01144]
[1767247670249,0.04835242,87689.0,87679.0,0.03423666]
[1767247703037,0.04835242,87689.0,87678.0,0.0001459]
[1767247705850,0.04835242,87689.0,87660.0,0.0004551]
[1767247706051,0.51611688,87690.0,87660.0,0.0004551]
[1767247706052,0.51611688,87670.0,87660.0,0.0004551]
[1767247706297,0.04610129,87672.0,87660.0,0.0004551]
[1767247706298,0.05754129,87675.0,87670.0,0.000549]
[1767247706678,0.05754129,87675.0,87660.0,0.02430714]
[1767247708539,0.05754129,87675.0,87671.0,0.0002398]
[1767247708845,0.05754129,87675.0,87671.0,8e-07]
[1767247710639,0.01144,87675.0,87671.0,8e-07]
[1767247721633,0.05754129,87675.0,87671.0,8e-07]
[1767247723762,0.01144,87675.0,87671.0,8e-07]
[1767247728057,0.04610129,87674.0,87671.0,8e-07]
[1767247728281,0.01144,87675.0,87671.0,8e-07]
[1767247729084,0.05754129,87675.0,87671.0,8e-07]
[1767247739182,0.05730329,87675.0,87671.0,8e-07]
[1767247783359,0.011202,87675.0,87671.0,8e-07]
[1767247784712,0.03424338,87690.0,87671.0,8e-07]
[1767247784713,0.01144,87679.0,87671.0,8e-07]
[1767247785027,0.01089,87679.0,87671.0,8e-07]
[1767247786201,0.04868996,87682.0,87671.0,8e-07]
[1767247786368,0.06012996,87681.0,87671.0,8e-07]
[1767247816259,0.01070276,87680.0,87671.0,8e-07]
[1767247816484,0.06012996,87681.0,87671.0,8e-07]
[1767247816698,0.01070278,87680.0,87671.0,8e-07]
[1767247816902,0.06012996,87681.0,87671.0,8e-07]
[1767247817123,0.01070278,87680.0,87671.0,8e-07]
[1767247817260,0.06012996,87681.0,87671.0,8e-07]
[1767247817455,0.01070278,87680.0,87671.0,8e-07]
[1767247817659,0.06012996,87681.0,87671.0,8e-07]
[1767247818000,0.01070278,87680.0,87671.0,8e-07]
[1767247818228,0.06012996,87681.0,87671.0,8e-07]
[1767247818430,0.01070278,87680.0,87671.0,8e-07]
[1767247818622,0.06012996,87681.0,87671.0,8e-07]
[1767247818815,0.01070278,87680.0,87671.0,8e-07]
[1767247818962,0.06012996,87681.0,87671.0,8e-07]
[1767247819191,0.01070278,87680.0,87671.0,8e-07]
[1767247819503,0.06012996,87681.0,87671.0,8e-07]
[1767247819690,0.01070277,87680.0,87671.0,8e-07]
[1767247819895,0.06012996,87681.0,87671.0,8e-07]
[1767247820094,0.01070277,87680.0,87671.0,8e-07]
[1767247820294,0.06012996,87681.0,87671.0,8e-07]
[1767247820491,0.01070276,87680.0,87671.0,8e-07]
[1767247820693,0.06012996,87681.0,87671.0,8e-07]
[1767247820908,0.01070302,87680.0,87671.0,8e-07]
[1767247821112,0.06012996,87681.0,87671.0,8e-07]
[1767247821311,0.01070318,87680.0,87671.0,8e-07]
[1767247821510,0.06012996,87681.0,87671.0,8e-07]
[1767247821810,0.01070311,87680.0,87671.0,8e-07]
[1767247822017,0.06012996,87681.0,87671.0,8e-07]
[1767247822193,0.01070317,87680.0,87671.0,8e-07]
[1767247822396,0.06012996,87681.0,87671.0,8e-07]
[1767247822599,0.0107035,87680.0,87671.0,8e-07]
[1767247822797,0.06012996,87681.0,87671.0,8e-07]
[1767247823024,0.01070421,87680.0,87671.0,8e-07]
[1767247823213,0.06012996,87681.0,87671.0,8e-07]
[1767247823426,0.01070433,87680.0,87671.0,8e-07]
[1767247823600,0.06012996,87681.0,87671.0,8e-07]
[1767247823808,0.01070432,87680.0,87671.0,8e-07]
[1767247824008,0.06012996,87681.0,87671.0,8e-07]
[1767247824207,0.01070408,87680.0,87671.0,8e-07]
[1767247824411,0.06012996,87681.0,87671.0,8e-07]
[1767247824614,0.01070407,87680.0,87671.0,8e-07]
[1767247824807,0.06012996,87681.0,87663.0,0.03280612]
[1767247825029,0.01070405,87680.0,87664.0,0.0213988]
[1767247825243,0.06012996,87681.0,87664.0,0.0213988]
[1767247825443,0.01070402,87680.0,87664.0,0.0213988]
[1767247825667,0.06012996,87681.0,87664.0,0.0213988]
[1767247825873,0.010704,87680.0,87664.0,0.0213988]
[1767247826014,0.06012996,87681.0,87664.0,0.0213988]
[1767247826350,0.01070409,87680.0,87664.0,0.0213988]
[1767247826498,0.06012996,87681.0,87664.0,0.0213988]
[1767247826699,0.01070373,87680.0,87664.0,0.0213988]
[1767247826932,0.06012996,87681.0,87664.0,0.0213988]
[1767247827134,0.01070406,87680.0,87664.0,0.0213988]
[1767247827333,0.06012996,87681.0,87664.0,0.0213988]
[1767247827577,0.04853915,87686.0,87671.0,0.0213988]
[1767247827731,0.01070426,87685.0,87671.0,0.0213988]
[1767247827933,0.01144,87687.0,87672.0,0.0213988]
[1767247828133,0.0107045,87686.0,87672.0,0.0213988]
[1767247828413,0.01144,87687.0,87672.0,0.03280495]
[1767247828565,0.01070131,87686.0,87672.0,0.0213988]
[1767247828748,0.01144,87687.0,87672.0,0.0213988]
[1767247828950,0.01070119,87686.0,87672.0,0.0213988]
[1767247829151,0.01144,87687.0,87672.0,0.0213988]
[1767247829367,0.01070005,87686.0,87672.0,0.03280495]
[1767247829571,0.01144,87687.0,87672.0,0.0213988]
[1767247829787,0.01070005,87686.0,87672.0,0.03280495]
[1767247829990,0.01144,87687.0,87672.0,0.03280495]
[1767247829991,0.01144,87687.0,87672.0,0.0213988]
[1767247830150,0.01069997,87686.0,87672.0,0.0213988]
[1767247830347,0.01144,87687.0,87672.0,0.0213988]
[1767247830574,0.04868505,87691.0,87675.0,0.0213988]
[1767247830779,0.0001459,87691.0,87678.0,0.0213988]
[1767247830978,0.04868505,87691.0,87672.0,0.0213988]
[1767247833064,0.04868505,87691.0,87672.0,0.03280495]
[1767247833261,0.04868505,87691.0,87672.0,0.0213988]
[1767247833732,0.04868505,87691.0,87672.0,0.03280495]
[1767247834496,0.04868505,87691.0,87673.0,0.01140602]
[1767247834697,0.04868505,87691.0,87674.0,0.01140589]
[1767247835129,0.04868505,87691.0,87673.0,0.01140602]
[1767247835340,0.04868505,87691.0,87674.0,0.03280469]
[1767247836202,0.04868505,87691.0,87675.0,0.01140575]
[1767247836400,0.04868505,87691.0,87674.0,0.03280469]
[1767247836622,0.04868505,87691.0,87674.0,0.0213988]
[1767247836825,0.04868505,87691.0,87680.0,0.51622804]
[1767247837028,0.04868505,87691.0,87674.0,0.0213988]
[1767247838197,0.04868505,87691.0,87674.0,0.03280469]
[1767247838409,0.04868505,87691.0,87674.0,0.0213988]
[1767247843962,0.04868505,87691.0,87660.0,0.0004551]
[1767247843963,0.04853915,87673.0,87660.0,0.0004551]
[1767247846565,0.04853915,87673.0,87660.0,0.51676829]
[1767247862179,0.04853915,87673.0,87660.0,0.0004551]
[1767247862421,0.04853915,87673.0,87660.0,0.51676829]
[1767247862785,0.04853915,87673.0,87660.0,0.0004551]
[1767247863023,0.04853915,87673.0,87660.0,0.51676829]
[1767247864407,0.04853915,87673.0,87660.0,0.0004551]
[1767247864646,0.04853915,87673.0,87660.0,0.51676829]
[1767247869975,0.04853915,87673.0,87660.0,0.0004551]
[1767247870123,0.04853915,87673.0,87660.0,0.51676829]
[1767247871259,0.04853915,87673.0,87660.0,0.0004551]
[1767247871420,0.04853915,87673.0,87660.0,0.51676829]
[1767247873464,0.01144,87677.0,87661.0,0.0213988]
[1767247873806,0.05939647,87677.0,87662.0,0.01144]
[1767247876980,0.05939647,87677.0,87667.0,0.51631319]
[1767247876981,0.05579803,87677.0,87667.0,0.51631319]
[1767247877377,0.00784156,87677.0,87667.0,0.51631319]
[1767247877750,0.04795647,87682.0,87667.0,0.52771999]
[1767247877961,0.04795647,87682.0,87670.0,0.51631319]
[1767247878509,0.04795647,87682.0,87672.0,0.51631319]
[1767247878715,0.01144,87683.0,87672.0,0.51631319]
[1767247878918,0.01144,87683.0,87670.0,0.51631319]
[1767247880651,0.01144,87683.0,87671.0,0.01144]
[1767247884078,0.04795647,87687.0,87671.0,0.01144]
[1767247884277,0.04928145,87685.0,87671.0,0.01144]
[1767247887941,0.04928145,87685.0,87660.0,0.0004551]
[1767247888141,0.01144,87689.0,87660.0,0.0004551]
[1767247888142,0.04928145,87669.0,87660.0,0.0004551]
[1767247889069,0.04928145,87669.0,87660.0,1e-07]
[1767247897914,0.51631319,87670.0,87660.0,1e-07]
[1767247898113,0.04928145,87674.0,87660.0,1e-07]
[1767247899971,0.51631319,87670.0,87660.0,1e-07]
[1767247907020,0.04928145,87674.0,87660.0,1e-07]
[1767247913755,0.04928145,87674.0,87660.0,0.0213989]
[1767247914370,0.04928145,87674.0,87660.0,1e-07]
[1767247917170,0.01144,87677.0,87660.0,1e-07]
[1767247917383,0.05775585,87676.0,87660.0,1e-07]
[1767247917560,0.04705312,87674.0,87660.0,1e-07]
[1767247922814,0.01144,87677.0,87660.0,0.51635031]
[1767247923012,0.01144,87677.0,87661.0,0.0213988]
[1767247923867,0.05849312,87677.0,87661.0,0.0213988]
[1767247924569,0.04705312,87677.0,87661.0,0.0213988]
[1767247927088,0.04705312,87677.0,87661.0,0.03280638]
[1767247927297,0.04705312,87677.0,87662.0,0.01140745]
[1767247927517,0.04705312,87677.0,87661.0,0.0213988]
[1767247927518,0.04705312,87677.0,87661.0,0.03280638]
[1767247927666,0.04705312,87677.0,87662.0,0.02287]
[1767247927870,0.04705312,87677.0,87661.0,0.03280638]
[1767247929906,0.04705312,87677.0,87662.0,0.01140745]
[1767247930294,0.04705312,87677.0,87661.0,0.03280638]
[1767247931268,0.04705312,87677.0,87662.0,0.01140745]
[1767247931423,0.04705312,87677.0,87661.0,0.0213988]
[1767247932321,0.04705312,87677.0,87661.0,0.03280638]
[1767247932558,0.04705312,87677.0,87661.0,0.0213988]
[1767247932756,0.04705312,87677.0,87661.0,0.03280638]